[Event "EIWCC 2018"]
[Site "Vysoke Tatry"]
[Date "2018.04.10"]
[Round "3"]
[White "Serakova, Tatana"]
[Black "Hereklioglu, Sude"]
[Result "0-1"]
[ECO "E12"]
[WhiteElo "1633"]
[BlackElo "2123"]
[Annotator "NA"]
[PlyCount "75"]
[EventDate "2018.??.??"]
[EventType "swiss"]
[EventCountry "SVK"]
[SourceTitle "playchess.com"]
[Source "ChessBase"]
[SourceQuality "1"]
[TimeControl "40/5400+30:1800+30"]

1. d4 Nf6 {[%emt 0:00:08]} 2. c4 {[%emt 0:00:00]} e6 {[%emt 0:00:05]} 3. Nf3 {[%emt 0:00:24]} b6 {[%emt 0:00:07]} 4. a3 {[%emt 0:00:31]} Bb7 {[%emt 0:00:59]} 5. Nc3 {[%emt 0:00:18]} d6 {[%emt 0:03:27]} 6. d5 {[%emt 0:02:22]} e5 {[%emt 0:00:33]} 7. e4 {[%emt 0:00:15]} g6 {[%emt 0:01:42]} 8. Bd3 {[%emt 0:03:23]} Bg7 {[%emt 0:00:33]} 9. O-O {[%emt 0:00:29]} O-O {[%emt 0:01:40]} 10. Ne1 {[%emt 0:08:34]} a5 {[%emt 0:02:42]} 11. Be3 {[%emt 0:01:27]} Nbd7 {[%emt 0:02:16]} 12. Bc2 {[%emt 0:03:54]} Nh5 {[%emt 0:14:07]} 13. g3 {[%emt 0:01:39]} Nc5 {[%emt 0:02:31]} 14. Nd3 {[%emt 0:05:35]} Bc8 {[%emt 0:09:56]} 15. Nxc5 {[%emt 0:19:38]} bxc5 {[%emt 0:01:41]} 16. Qd2 {[%emt 0:05:44]} Bh3 {[%emt 0:03:32]} 17. Rfe1 {[%emt 0:01:24]} f5 {[%emt 0:04:15]} 18. exf5 {[%emt 0:02:40]} gxf5 {[%emt 0:00:32]} 19. Bh6 {[%emt 0:04:08]} Qf6 {[%emt 0:02:05]} 20. Bxg7 {[%emt 0:05:23]} Qxg7 {[%emt 0:04:34]} 21. Bd1 {[%emt 0:02:35]} Nf6 {[%emt 0:05:14]} 22. f3 {[%emt 0:06:40]} Rae8 {[%emt 0:03:04]} 23. Bc2 {[%emt 0:05:02]} Kh8 {[%emt 0:10:50]} 24. Kh1 {[%emt 0:00:16]} Qg6 {[%emt 0:07:19]} 25. Ne2 {[%emt 0:07:14]} Qh5 {[%emt 0:01:16]} 26. Ng1 {[%emt 0:02:25]} e4 {[%emt 0:01:50]} 27. fxe4 {[%emt 0:01:51]} fxe4 {[%emt 0:00:15]} 28. Nxh3 {[%emt 0:02:39]} Qxh3 {[%emt 0:00:19]} 29. Rf1 {[%emt 0:02:32]} Ng4 {[%emt 0:00:54]} 30. Rxf8+ {[%emt 0:00:43]} Rxf8 {[%emt 0:00:06]} 31. Qg2 {[%emt 0:05:01]} Qxg2+ {[%emt 0:00:23]} 32. Kxg2 {[%emt 0:00:05]} Ne3+ {[%emt 0:00:05]} 33. Kh3 {[%emt 0:00:31]} Nxc2 {[%emt 0:00:19]} 34. Rc1 {[%emt 0:00:40]} Rf2 {[%emt 0:00:05]} 35. g4 {[%emt 0:00:27]} e3 {[%emt 0:00:34]} 36. Kg3 {[%emt 0:00:23]} Rd2 {[%emt 0:00:22]} 37. h4 {[%emt 0:00:57]} e2 {[%emt 0:00:08]} 38. Kf3 0-1